[Event "FIDE World Cadets GU12 2022"]
[Site "Batumi"]
[Date "2022.09.17"]
[Round "2.1"]
[White "Preobrazhenskaya, Diana"]
[Black "Vlasova, Mariya N"]
[Result "1-0"]
[ECO "B07"]
[WhiteElo "1994"]
[BlackElo "1456"]
[Annotator "TA"]
[PlyCount "53"]
[EventDate "2022.09.16"]
[EventType "swiss"]
[EventCountry "GEO"]
[SourceTitle "playchess.com"]
[Source "ChessBase"]
[SourceQuality "1"]
[TimeControl "5400+30"]

{[%evp 9,53,19,49,27,66,59,74,72,79,83,205,205,208,210,418,422,392,427,456,446,480,483,585,582,700,697,2952,2943,29981,4279,29982,29983,29982,29982,3469,2495,29985,29983,2834,2277,29990,1626,5803,5795,5585,4902]} 1. e4 {[%emt 0:01:00]} d6 {[%emt 0:01:00]} 2. d4 {[%emt 0:00:30]} Nf6 {[%emt 0:00:30]} 3. Bd3 {[%emt 0:00:00]} Nc6 {[%emt 0:00:30]} 4. c3 {[%emt 0:01:00]} e5 {[%emt 0:00:30]} 5. Ne2 {[%emt 0:10:30][%cal Bg1e2,Be2g3,Bg3f5][%mdl 32]} Be7 {[%emt 0:04:30]} 6. O-O {[%emt 0:06:30] B07: Pirc Defence: Miscellaneous Systems.} Bg4 {[%emt 0:04:30]} 7. f3 {[%emt 0:10:30]} Bh5 {[%emt 0:00:30] [#]} 8. Ng3 $146 {[%emt 0:04:30] White is better.} ({Predecessor:} 8. Be3 Bg6 9. Nd2 Qd7 10. a4 a6 11. Ng3 O-O 12. f4 h6 13. f5 Bh7 14. d5 {1-0 (69) Toth,L (1801)-Kapas,S (1692) Hungary 2004}) 8... exd4 {[%emt 0:06:30]} 9. Nf5 {[%emt 0:08:30][%csl LRd4,LRg7]} dxc3 {[%emt 0:08:30]} (9... O-O $16) 10. Nxg7+ $18 {[%emt 0:03:30]} Kd7 {[%emt 0:00:30]} 11. Nxh5 {[%emt 0:17:30]} ({Don't take} 11. Nxc3 $6 Bg6 $16) 11... cxb2 $2 {[%emt 0:00:00]} (11... Nxh5 {might work better.} 12. Nxc3 Kc8) 12. Bxb2 {[%emt 0:01:30]} Nxh5 {[%emt 0:00:00] [#]} 13. f4 $1 {[%emt 0:02:30][%cal Bf3f4,Bf4e5][%mdl 32]} Nf6 {[%emt 0:03:30] Inhibits Qg4+.} 14. e5 {[%emt 0:00:30]} dxe5 {[%emt 0:01:30]} 15. fxe5 {[%emt 0:00:30]} Nd5 {[%emt 0:00:30]} (15... Bc5+ $2 16. Kh1) 16. Be4 {[%emt 0:04:30]} Bc5+ {[%emt 0:01:30]} 17. Kh1 {[%emt 0:00:30]} Ke6 {[%emt 0:00:00]} 18. Bxd5+ {[%emt 0:00:30] A strong pair of Bishops.} Ke7 {[%emt 0:04:00]} 19. Rxf7+ {[%emt 0:00:30][%cal Bf1f7,Bf7h7,Bh7h8][%mdl 32]} Ke8 {[%emt 0:00:30] [#]} 20. Qh5 $1 {[%emt 0:02:30]} Qxd5 {[%emt 0:02:30]} 21. Rxh7+ {[%emt 0:00:30]} Kd8 {[%emt 0:00:30]} 22. Rxh8+ {[%emt 0:00:30]} Ke7 {[%emt 0:00:00]} 23. Qg5+ {[%emt 0:02:30]} Kd7 {[%emt 0:00:00]} 24. Qf5+ {[%emt 0:00:30]} Ke7 {[%emt 0:00:30]} 25. Qf6+ {[%emt 0:00:30]} (25. Rh7+ $142 Ke8 26. Nc3 Ne7 27. Rxe7+ Bxe7 28. Nxd5 c6 29. e6 Kd8 {[#]} 30. Qf7 $1 cxd5 31. Be5 Kc8 32. Qg8+ Bd8 33. Rc1#) 25... Kd7 {[%emt 0:00:00]} 26. Nc3 {[%emt 0:00:30]} Qxe5 {[%emt 0:01:00]} 27. Rd1+ {[%emt 0:01:30] White took control after the opening.  Weighted Error Value: White=0.06 (flawless) /Black=1.39} 1-0

[Event "FIDE World Cadets GU12 2022"]
[Site "Batumi"]
[Date "2022.09.17"]
[Round "2.2"]
[White "Abramkina, Veranika"]
[Black "Ismayilova, Khanim"]
[Result "1-0"]
[ECO "A13"]
[WhiteElo "1445"]
[BlackElo "1901"]
[Annotator "TA"]
[PlyCount "117"]
[EventDate "2022.09.16"]
[EventType "swiss"]
[EventCountry "GEO"]
[SourceTitle "playchess.com"]
[Source "ChessBase"]
[SourceQuality "1"]
[TimeControl "5400+30"]

{[%evp 14,117,12,17,17,0,25,34,28,13,18,0,0,-9,-2,-41,-31,-41,-44,-55,-43,-59,-60,-112,-72,-59,-36,-50,0,-10,0,-100,-105,-452,164,165,161,162,169,112,139,135,317,284,293,288,286,282,339,298,345,310,490,482,421,263,457,463,461,456,458,460,542,533,588,550,542,479,523,522,537,522,515,475,623,623,604,587,734,725,749,741,726,719,793,777,741,725,863,797,1486,1498,1355,1290,29956,29956,29989,29969,29993,29971,29980,29981,29981,29982,29979,12751]} 1. Nf3 {[%emt 0:01:00]} d5 {[%emt 0:01:00]} 2. g3 {[%emt 0:00:30]} e6 {[%emt 0:00:30]} 3. Bg2 {[%emt 0:00:00]} Nf6 {[%emt 0:01:30]} 4. c4 {[%emt 0:00:00]} d4 {[%emt 0:00:30]} 5. e3 {[%emt 0:00:00]} c5 {[%emt 0:00:30]} 6. exd4 {[%emt 0:00:00]} cxd4 {[%emt 0:00:30]} 7. d3 {[%emt 0:00:30]} Nc6 {[%emt 0:01:30]} 8. O-O {[%emt 0:00:00]} Bd6 {[%emt 0:11:30] A13: English Opening: 1...e6.} 9. Bg5 {[%emt 0:01:00] The main line 9.Bg5 scores better than 9.Na3.} O-O {[%emt 0:03:30]} 10. Nbd2 {[%emt 0:00:00]} Be7 {[%emt 0:08:30] White is slightly better.} 11. a3 {[%emt 0:04:00]} a5 {[%emt 0:01:30] [#] Inhibits b4.} 12. Rb1 $146 {[%emt 0:01:30]} ({Predecessor:} 12. Rc1 h6 13. Bxf6 gxf6 14. Re1 f5 15. c5 Bd7 16. Qe2 a4 17. Nc4 Be8 18. Nfe5 {½-½ (32) Sferle,M (2508)-Nekhaev,A (2491) ICCF email 2017}) 12... a4 {[%emt 0:01:30]} 13. Bxf6 {[%emt 0:02:30]} Bxf6 {[%emt 0:00:30]} 14. b4 {[%emt 0:01:30]} axb3 $1 {[%emt 0:03:30]} 15. Rxb3 {[%emt 0:00:30]} Be7 {[%emt 0:01:30]} 16. Qa1 {[%emt 0:02:30]} Qa5 {[%emt 0:06:30]} 17. Nb1 {[%emt 0:15:30]} Rd8 {[%emt 0:13:30]} 18. Re1 {[%emt 0:05:30]} (18. Rc1 $15) 18... Qa4 {[%emt 0:05:30]} 19. Qb2 {[%emt 0:04:30]} Ra7 {[%emt 0:06:30]} 20. Nfd2 {[%emt 0:16:30]} Na5 {[%emt 0:03:30]} 21. Rb5 {[%emt 0:05:30]} Bd7 {[%emt 0:00:30]} 22. Qxd4 {[%emt 0:01:30]} (22. Bf3 $1 $11) 22... Nxc4 $17 {[%emt 0:00:00]} 23. Nc3 {[%emt 0:02:30][%mdl 8192] [#]} (23. Rxb7 $17 Rxb7 24. Bxb7 Nxd2 25. Qxa4 Bxa4 26. Nxd2) 23... Qa6 $4 {[%emt 0:12:32][%mdl 8192]} (23... Bxb5 $19 {and all is fine.} 24. Qf4 Qa5 25. Nxb5 Nxd2 26. Nxa7 Nf3+ 27. Qxf3 Qxe1+ 28. Bf1 Rd5) 24. Qxc4 $18 {[%emt 0:02:30][%cal Ob5b7] Strongly threatening Rxb7!} Bxb5 {[%emt 0:01:12]} 25. Nxb5 {[%emt 0:00:30]} Raa8 {[%emt 0:00:14]} 26. Qb3 {[%emt 0:08:30]} ({White should try} 26. Rb1 $18) 26... Qa5 $16 {[%emt 0:04:01]} 27. Rd1 {[%emt 0:00:30]} Rac8 $2 {[%emt 0:03:20]} (27... Bxa3 $16 28. Bxb7 (28. Nxa3 Qxa3 29. Qxb7 Rab8 $11) 28... Rab8) 28. Nc4 {[%emt 0:00:30]} Qa6 {[%emt 0:00:08]} 29. Rb1 {[%emt 0:05:30][%cal Bd1b1,Bb1c1,Bc1c8][%mdl 32]} Rc5 {[%emt 0:02:34]} 30. d4 {[%emt 0:03:36]} Rf5 {[%emt 0:01:26]} 31. Ne3 {[%emt 0:01:29]} Rf6 {[%emt 0:00:39]} 32. Rc1 {[%emt 0:03:50]} Bd6 {[%emt 0:01:52]} (32... Qa5 $142 33. Bxb7 Qd2) 33. Nxd6 $18 {[%emt 0:02:09]} Qxd6 {[%emt 0:00:08]} 34. Qb4 {[%emt 0:00:21]} h6 $2 {[%emt 0:02:02]} (34... Qxb4 35. axb4 Kf8) 35. Qxd6 {[%emt 0:00:30]} Rxd6 {[%emt 0:00:30]} 36. Rc8+ {[%emt 0:00:30]} Kh7 {[%emt 0:00:30]} 37. Be4+ {[%emt 0:00:00]} g6 {[%emt 0:00:26]} 38. Ng4 {[%emt 0:00:00]} Rf5 {[%emt 0:01:53]} 39. Bxf5 {[%emt 0:00:00]} gxf5 {[%emt 0:00:30][%mdl 4096] Endgame KRN-KR} 40. Ne3 {[%emt 0:00:07]} Rxd4 {[%emt 0:00:30]} 41. Rc7 {[%emt 0:00:02][%csl LRb7,LRf7]} Ra4 {[%emt 0:00:00]} 42. Nc2 {[%emt 0:01:11]} Kg6 {[%emt 0:00:00]} 43. Rxb7 {[%emt 0:00:22]} f6 {[%emt 0:00:29]} 44. Rb4 {[%emt 0:00:30]} Ra6 {[%emt 0:00:30]} 45. a4 {[%emt 0:00:00][%cal Ba3a4,Ba4a5,Ba5a6,Ba6a7][%mdl 32]} Kg5 {[%emt 0:00:00]} 46. Ne3 {[%emt 0:00:15]} e5 {[%emt 0:00:17]} 47. Nc4 {[%emt 0:00:35]} f4 {[%emt 0:00:30]} 48. Kg2 {[%emt 0:00:30]} e4 {[%emt 0:00:00]} 49. gxf4+ {[%emt 0:00:02]} Kxf4 {[%emt 0:00:00]} 50. a5 {[%emt 0:00:50]} f5 {[%emt 0:00:21]} 51. Rb6 {[%emt 0:00:30]} Ra8 {[%emt 0:00:30]} 52. a6 {[%emt 0:00:30]} Rg8+ {[%emt 0:00:00]} 53. Kf1 {[%emt 0:00:00] [#] a7 would kill now.} Kf3 {[%emt 0:00:00]} 54. a7 {[%emt 0:00:00] White mates.} e3 {[%emt 0:00:29]} 55. fxe3 {[%emt 0:00:00]} ({Not} 55. Rb8 $2 e2+ 56. Ke1 Rg1+ 57. Kd2 e1=Q+ $19) 55... Rd8 {[%emt 0:00:30]} 56. Ne5+ {[%emt 0:00:00]} Kxe3 {[%emt 0:00:00]} 57. Rb8 {[%emt 0:00:04]} Rd1+ {[%emt 0:00:16]} 58. Kg2 {[%emt 0:00:00]} Rd2+ {[%emt 0:00:43]} 59. Kh3 {[%emt 0:00:00] Weighted Error Value: White=0.33/Black=0.53} 1-0

[Event "FIDE World Cadets GU12 2022"]
[Site "Batumi"]
[Date "2022.09.17"]
[Round "2.3"]
[White "Kaliakhmet, Elnaz"]
[Black "Sezdbekova, Aizhan"]
[Result "1-0"]
[ECO "E15"]
[WhiteElo "1864"]
[BlackElo "1447"]
[Annotator "NA COMBH"]
[PlyCount "71"]
[EventDate "2022.09.16"]
[EventType "swiss"]
[EventCountry "GEO"]
[SourceTitle "playchess.com"]
[Source "ChessBase"]
[SourceQuality "1"]
[TimeControl "5400+30"]

1. d4 {[%emt 0:01:00]} Nf6 {[%emt 0:01:00]} 2. c4 {[%emt 0:00:30]} e6 {[%emt 0:00:30]} 3. Nf3 {[%emt 0:00:00]} b6 {[%emt 0:01:30]} 4. g3 {[%emt 0:00:00]} Ba6 {[%emt 0:00:30]} 5. Qa4 {[%emt 0:01:30]} c5 {[%emt 0:19:30]} 6. Bg2 {[%emt 0:03:30]} Bb7 {[%emt 0:03:30]} 7. dxc5 {[%emt 0:00:30]} Bc6 {[%emt 0:10:30]} 8. Qc2 {[%emt 0:07:30]} bxc5 {[%emt 0:04:30]} 9. O-O {[%emt 0:08:30]} Be7 {[%emt 0:03:30]} 10. Nc3 {[%emt 0:00:30]} O-O {[%emt 0:05:30]} 11. Rd1 {[%emt 0:02:30]} Qb6 {[%emt 0:07:30]} 12. Bf4 {[%emt 0:13:30]} Rd8 {[%emt 0:10:30]} 13. e4 {[%emt 0:13:30]} Qb7 {[%emt 0:07:30]} 14. Ne5 {[%emt 0:16:30]} Nh5 {[%emt 0:10:19]} 15. Be3 {[%emt 0:02:30]} d6 {[%emt 0:01:28]} 16. Nxc6 {[%emt 0:00:30]} Nxc6 {[%emt 0:00:18]} 17. Rab1 {[%emt 0:12:53]} Qa6 {[%emt 0:03:57]} 18. e5 {[%emt 0:06:31]} dxe5 {[%emt 0:01:48]} 19. Qa4 {[%emt 0:00:30]} Qxa4 {[%emt 0:00:54]} 20. Nxa4 {[%emt 0:00:06]} Rac8 {[%emt 0:00:47]} 21. Nxc5 {[%emt 0:02:10]} Rxd1+ {[%emt 0:03:04]} 22. Rxd1 {[%emt 0:00:30]} Nd4 {[%emt 0:00:00]} 23. Nd3 {[%emt 0:00:43]} Rxc4 {[%emt 0:02:04]} 24. Nxe5 {[%emt 0:00:56]} Ne2+ {[%emt 0:00:32]} 25. Kf1 {[%emt 0:00:17]} Rc2 {[%emt 0:00:20]} 26. Bf3 {[%emt 0:01:07]} Rxb2 {[%emt 0:01:17]} 27. Bxh5 {[%emt 0:01:19]} Nc3 {[%emt 0:00:08]} 28. Rc1 {[%emt 0:01:02]} Rb1 {[%emt 0:00:45]} 29. Rxb1 {[%emt 0:00:09]} Nxb1 {[%emt 0:00:32]} 30. Bxf7+ {[%emt 0:00:30]} Kf8 {[%emt 0:00:30]} 31. Bxe6 {[%emt 0:00:00]} a5 {[%emt 0:00:00]} 32. Nc6 {[%emt 0:01:36]} a4 {[%emt 0:00:11]} 33. Nxe7 {[%emt 0:00:41]} Kxe7 {[%emt 0:00:30]} 34. Bf5 {[%emt 0:00:09]} Nc3 {[%emt 0:00:00]} 35. a3 {[%emt 0:00:30]} h6 {[%emt 0:00:00]} 36. Bc2 {[%emt 0:00:28]} 1-0

[Event "FIDE World Cadets GU12 2022"]
[Site "Batumi"]
[Date "2022.09.17"]
[Round "2.4"]
[White "Mgeladze, Kesaria"]
[Black "Vizcarra Quispe, Ramalia Bellaluz"]
[Result "1-0"]
[ECO "C43"]
[WhiteElo "1771"]
[BlackElo "1429"]
[Annotator "NA COMBH"]
[PlyCount "123"]
[EventDate "2022.09.16"]
[EventType "swiss"]
[EventCountry "GEO"]
[SourceTitle "playchess.com"]
[Source "ChessBase"]
[SourceQuality "1"]
[TimeControl "5400+30"]

1. e4 {[%emt 0:01:00]} e5 {[%emt 0:01:00]} 2. Nf3 {[%emt 0:00:30]} Nf6 {[%emt 0:00:30]} 3. d4 {[%emt 0:00:30]} Nxe4 {[%emt 0:00:30]} 4. Bd3 {[%emt 0:00:30]} d5 {[%emt 0:00:30]} 5. Nxe5 {[%emt 0:00:00]} Nd7 {[%emt 0:00:00]} 6. Nxd7 {[%emt 0:01:00]} Bxd7 {[%emt 0:00:00]} 7. O-O {[%emt 0:01:30]} Bd6 {[%emt 0:04:30]} 8. Nc3 {[%emt 0:14:30]} Nxc3 {[%emt 0:07:30]} 9. bxc3 {[%emt 0:00:30]} Qh4 {[%emt 0:05:30]} 10. Re1+ {[%emt 0:01:30]} Be6 {[%emt 0:00:30]} 11. g3 {[%emt 0:00:30]} Qf6 {[%emt 0:06:30]} 12. Qh5 {[%emt 0:12:30]} h6 {[%emt 0:06:30]} 13. Qxd5 {[%emt 0:28:30]} O-O {[%emt 0:03:30]} 14. Qe4 {[%emt 0:00:00]} g6 {[%emt 0:10:30]} 15. Bxh6 {[%emt 0:01:00]} Rfe8 {[%emt 0:00:30]} 16. Qh4 {[%emt 0:00:30]} Qxh4 {[%emt 0:00:30]} 17. gxh4 {[%emt 0:00:30]} Kh7 {[%emt 0:04:30]} 18. Bg5 {[%emt 0:00:30]} Kg7 {[%emt 0:00:30]} 19. a4 {[%emt 0:08:30]} Bd7 {[%emt 0:00:30]} 20. a5 {[%emt 0:06:49]} f6 {[%emt 0:01:30]} 21. Bd2 {[%emt 0:02:24]} Rh8 {[%emt 0:00:30]} 22. Bf4 {[%emt 0:05:45]} Bxf4 {[%emt 0:13:30]} 23. Re7+ {[%emt 0:00:30]} Kf8 {[%emt 0:00:30]} 24. Rxd7 {[%emt 0:00:00]} Rxh4 {[%emt 0:00:30]} 25. Re1 {[%emt 0:00:55]} Re8 {[%emt 0:01:30]} 26. Rxe8+ {[%emt 0:00:30]} Kxe8 {[%emt 0:00:30]} 27. Rg7 {[%emt 0:00:22]} Bxh2+ {[%emt 0:01:30]} 28. Kg2 {[%emt 0:00:10]} g5 {[%emt 0:01:30]} 29. Rg8+ {[%emt 0:01:52]} Kd7 {[%emt 0:00:30]} 30. Rb8 {[%emt 0:00:21]} Kc6 {[%emt 0:01:30]} 31. f3 {[%emt 0:00:31]} b6 {[%emt 0:00:00]} 32. a6 {[%emt 0:00:02]} Bf4 {[%emt 0:02:00]} 33. Ra8 {[%emt 0:00:26]} Rh2+ {[%emt 0:05:30]} 34. Kg1 {[%emt 0:00:07]} Rh3 {[%emt 0:02:41]} 35. Rxa7 {[%emt 0:00:30]} Rh8 {[%emt 0:01:06]} 36. Rb7 {[%emt 0:06:06]} Ra8 {[%emt 0:00:44]} 37. Kf2 {[%emt 0:00:59]} f5 {[%emt 0:01:58]} 38. Ke2 {[%emt 0:02:12]} Re8+ {[%emt 0:02:41]} 39. Kf1 {[%emt 0:01:05]} Ra8 {[%emt 0:00:08]} 40. Bxf5 {[%emt 0:01:36]} Rxa6 {[%emt 0:00:30]} 41. Be4+ {[%emt 0:00:00]} Kd6 {[%emt 0:00:22]} 42. Rb8 {[%emt 0:00:26]} Ra1+ {[%emt 0:01:17]} 43. Ke2 {[%emt 0:00:05]} Ra5 {[%emt 0:00:55]} 44. c4 {[%emt 0:00:24]} Kd7 {[%emt 0:01:13]} 45. Rg8 {[%emt 0:00:25]} Ra3 {[%emt 0:01:19]} 46. Rg7+ {[%emt 0:00:30]} Kd6 {[%emt 0:00:30]} 47. Rg6+ {[%emt 0:00:30]} Ke7 {[%emt 0:00:00]} 48. d5 {[%emt 0:00:24]} Rc3 {[%emt 0:01:34]} 49. Bd3 {[%emt 0:00:12]} Kd7 {[%emt 0:00:40]} 50. Kf2 {[%emt 0:00:30]} Kc8 {[%emt 0:00:30]} 51. Kg2 {[%emt 0:00:13]} Ra3 {[%emt 0:00:46]} 52. Kh3 {[%emt 0:00:28]} Ra1 {[%emt 0:01:21]} 53. Kg4 {[%emt 0:00:30]} Rg1+ {[%emt 0:00:30]} 54. Kf5 {[%emt 0:00:00]} Kd7 {[%emt 0:00:14]} 55. Re6 {[%emt 0:00:29]} Rh1 {[%emt 0:00:40]} 56. Kf6 {[%emt 0:01:36]} Rh8 {[%emt 0:01:16]} 57. Kg7 {[%emt 0:00:18]} Re8 {[%emt 0:00:25]} 58. Kf7 {[%emt 0:00:34]} Rh8 {[%emt 0:01:28]} 59. Bf5 {[%emt 0:00:11]} Kd8 {[%emt 0:00:49]} 60. Re7 {[%emt 0:00:31]} Bd2 {[%emt 0:00:53]} 61. d6 {[%emt 0:00:35]} c6 {[%emt 0:05:26]} 62. Ra7 {[%emt 0:00:17]} 1-0

[Event "FIDE World Cadets GU12 2022"]
[Site "Batumi"]
[Date "2022.09.17"]
[Round "2.5"]
[White "Assylkhan, Asiya"]
[Black "Yousefian, Maedeh"]
[Result "0-1"]
[ECO "D02"]
[WhiteElo "1424"]
[BlackElo "1765"]
[Annotator "NA COMBH"]
[PlyCount "66"]
[EventDate "2022.09.16"]
[EventType "swiss"]
[EventCountry "GEO"]
[SourceTitle "playchess.com"]
[Source "ChessBase"]
[SourceQuality "1"]
[TimeControl "5400+30"]

1. d4 {[%emt 0:01:00]} Nf6 {[%emt 0:01:00]} 2. Bf4 {[%emt 0:00:30]} e6 {[%emt 0:00:30]} 3. e3 {[%emt 0:00:00]} d5 {[%emt 0:00:30]} 4. Nf3 {[%emt 0:00:00]} c5 {[%emt 0:01:30]} 5. c3 {[%emt 0:00:00]} Qb6 {[%emt 0:00:30]} 6. Qb3 {[%emt 0:00:00]} c4 {[%emt 0:00:30]} 7. Qc2 {[%emt 0:00:00]} Be7 {[%emt 0:09:30]} 8. Nbd2 {[%emt 0:01:00]} Nc6 {[%emt 0:01:30]} 9. Ne5 {[%emt 0:02:30]} Nh5 {[%emt 0:03:30]} 10. Be2 {[%emt 0:01:30]} Nxf4 {[%emt 0:00:00]} 11. exf4 {[%emt 0:00:30]} Qc7 {[%emt 0:03:00]} 12. g3 {[%emt 0:02:30]} b5 {[%emt 0:03:30]} 13. a3 {[%emt 0:02:30]} Bb7 {[%emt 0:00:30]} 14. O-O {[%emt 0:02:30]} a5 {[%emt 0:05:30]} 15. b3 {[%emt 0:15:30]} O-O {[%emt 0:04:30]} 16. a4 {[%emt 0:12:30]} cxb3 {[%emt 0:11:30]} 17. Qxb3 {[%emt 0:05:30]} b4 {[%emt 0:01:30]} 18. Rfc1 {[%emt 0:04:30]} Nxe5 {[%emt 0:07:30]} 19. fxe5 {[%emt 0:07:30]} Qb6 {[%emt 0:01:30]} 20. cxb4 {[%emt 0:05:30]} Qxd4 {[%emt 0:12:30]} 21. bxa5 {[%emt 0:08:30]} Qxe5 {[%emt 0:08:30]} 22. Qxb7 {[%emt 0:11:31]} Qxe2 {[%emt 0:00:30]} 23. Nf1 {[%emt 0:05:01]} Bf6 {[%emt 0:01:30]} 24. Rab1 {[%emt 0:05:52]} Bd4 {[%emt 0:01:30]} 25. Ne3 {[%emt 0:00:30]} Bxe3 {[%emt 0:00:30]} 26. fxe3 {[%emt 0:00:00]} Qxe3+ {[%emt 0:00:00]} 27. Kh1 {[%emt 0:00:47]} Qe4+ {[%emt 0:01:00]} 28. Kg1 {[%emt 0:01:01]} Qxa4 {[%emt 0:00:32]} 29. Ra1 {[%emt 0:02:57]} Qd4+ {[%emt 0:00:28]} 30. Kf1 {[%emt 0:00:39]} Rab8 {[%emt 0:00:42]} 31. Qc7 {[%emt 0:00:48]} Rb2 {[%emt 0:02:22]} 32. Qf4 {[%emt 0:01:04]} Qd3+ {[%emt 0:01:04]} 33. Kg1 {[%emt 0:00:30]} Qe2 {[%emt 0:00:00]} 0-1

[Event "FIDE World Cadets GU12 2022"]
[Site "Batumi"]
[Date "2022.09.17"]
[Round "2.6"]
[White "Goriachkina, Oksana"]
[Black "Kholyavko, Mariya"]
[Result "0-1"]
[ECO "E90"]
[WhiteElo "1748"]
[BlackElo "1421"]
[Annotator "NA COMBH"]
[PlyCount "130"]
[EventDate "2022.09.16"]
[EventType "swiss"]
[EventCountry "GEO"]
[SourceTitle "playchess.com"]
[Source "ChessBase"]
[SourceQuality "1"]
[TimeControl "5400+30"]

1. d4 {[%emt 0:01:00]} Nf6 {[%emt 0:01:00]} 2. c4 {[%emt 0:00:30]} g6 {[%emt 0:00:00]} 3. Nc3 {[%emt 0:00:30]} Bg7 {[%emt 0:00:00]} 4. e4 {[%emt 0:00:30]} d6 {[%emt 0:00:00]} 5. Nf3 {[%emt 0:01:30]} O-O {[%emt 0:00:00]} 6. h3 {[%emt 0:01:30]} e5 {[%emt 0:00:30]} 7. Be3 {[%emt 0:02:30]} Nbd7 {[%emt 0:00:30]} 8. dxe5 {[%emt 0:03:30]} Nxe5 {[%emt 0:01:30]} 9. Nxe5 {[%emt 0:01:30]} dxe5 {[%emt 0:00:30]} 10. Qc2 {[%emt 0:00:30]} Be6 {[%emt 0:01:30]} 11. Rd1 {[%emt 0:02:30]} Qe7 {[%emt 0:00:30]} 12. Be2 {[%emt 0:03:30]} c6 {[%emt 0:05:30]} 13. a3 {[%emt 0:01:30]} b6 {[%emt 0:01:30]} 14. Qc1 {[%emt 0:03:30]} Rfd8 {[%emt 0:01:30]} 15. O-O {[%emt 0:01:30]} Nd7 {[%emt 0:01:30]} 16. Bg5 {[%emt 0:06:30]} f6 {[%emt 0:00:00]} 17. Bh6 {[%emt 0:01:30]} Nf8 {[%emt 0:01:00]} 18. Bxg7 {[%emt 0:00:30]} Kxg7 {[%emt 0:00:00]} 19. Qe3 {[%emt 0:01:30]} Bf7 {[%emt 0:01:00]} 20. Rfe1 {[%emt 0:10:30]} Ne6 {[%emt 0:00:30]} 21. Rxd8 {[%emt 0:04:30]} Rxd8 {[%emt 0:00:30]} 22. Bf1 {[%emt 0:03:30]} Nd4 {[%emt 0:00:30]} 23. Rd1 {[%emt 0:00:30]} a5 {[%emt 0:01:30]} 24. Kh1 {[%emt 0:03:30]} Be6 {[%emt 0:08:30]} 25. Rc1 {[%emt 0:07:30]} Nb3 {[%emt 0:09:30]} 26. Rc2 {[%emt 0:04:30]} Nd4 {[%emt 0:00:30]} 27. Rc1 {[%emt 0:02:30]} Nb3 {[%emt 0:01:30]} 28. Rd1 {[%emt 0:01:30]} Rd4 {[%emt 0:01:30]} 29. Bd3 {[%emt 0:08:30]} Qd8 {[%emt 0:03:30]} 30. Ne2 {[%emt 0:11:48]} Rxc4 {[%emt 0:01:30]} 31. Bc2 {[%emt 0:02:39]} Nd4 {[%emt 0:00:00]} 32. Bb3 {[%emt 0:01:05]} c5 {[%emt 0:00:00]} 33. Bxc4 {[%emt 0:03:02]} Bxc4 {[%emt 0:00:30]} 34. Nxd4 {[%emt 0:00:16]} exd4 {[%emt 0:01:30]} 35. Qf4 {[%emt 0:01:55]} b5 {[%emt 0:02:30]} 36. e5 {[%emt 0:00:37]} f5 {[%emt 0:00:00]} 37. e6 {[%emt 0:01:04]} Qe7 {[%emt 0:01:00]} 38. Qe5+ {[%emt 0:00:24]} Kg8 {[%emt 0:01:30]} 39. Rc1 {[%emt 0:02:07]} d3 {[%emt 0:00:30]} 40. Qb8+ {[%emt 0:00:52]} Qf8 {[%emt 0:00:30]} 41. Qe5 {[%emt 0:00:57]} Qe7 {[%emt 0:01:30]} 42. Qb8+ {[%emt 0:00:30]} Kg7 {[%emt 0:00:30]} 43. Qe5+ {[%emt 0:00:06]} Kh6 {[%emt 0:00:30]} 44. Qf4+ {[%emt 0:00:36]} Qg5 {[%emt 0:00:30]} 45. Qxg5+ {[%emt 0:01:05]} Kxg5 {[%emt 0:00:30]} 46. e7 {[%emt 0:00:45]} Bf7 {[%emt 0:00:00]} 47. Re1 {[%emt 0:00:47]} Be8 {[%emt 0:00:00]} 48. Kg1 {[%emt 0:00:07]} c4 {[%emt 0:00:30]} 49. f3 {[%emt 0:00:30]} b4 {[%emt 0:00:00]} 50. Kf2 {[%emt 0:00:25]} c3 {[%emt 0:02:00]} 51. bxc3 {[%emt 0:00:45]} bxc3 {[%emt 0:00:30]} 52. Ke3 {[%emt 0:00:12]} d2 {[%emt 0:01:30]} 53. Ra1 {[%emt 0:00:26]} Bb5 {[%emt 0:00:30]} 54. g3 {[%emt 0:00:56]} Kf6 {[%emt 0:00:30]} 55. e8=Q {[%emt 0:00:32]} Bxe8 {[%emt 0:00:30]} 56. Kd3 {[%emt 0:00:30]} Ba4 {[%emt 0:00:00]} 57. Kxc3 {[%emt 0:00:42]} d1=Q {[%emt 0:00:00]} 58. Rxd1 {[%emt 0:00:30]} Bxd1 {[%emt 0:00:30]} 59. f4 {[%emt 0:00:30]} g5 {[%emt 0:00:30]} 60. Kd4 {[%emt 0:00:30]} gxf4 {[%emt 0:00:30]} 61. gxf4 {[%emt 0:00:30]} Kg6 {[%emt 0:00:30]} 62. Ke3 {[%emt 0:00:30]} Kh5 {[%emt 0:00:00]} 63. Kf2 {[%emt 0:00:00]} Kh4 {[%emt 0:00:00]} 64. Kg2 {[%emt 0:00:00]} Bc2 {[%emt 0:00:00]} 65. Kh2 {[%emt 0:00:27]} Be4 {[%emt 0:00:00]} 0-1